fUST/lending_fUST_20241217
["ID","MTS","AMOUNT","RATE_DAILY","PERIOD"]
[345606620,1734378665047,-460.34735116,0.00028219,2]
[345606621,1734378665057,-500.0,0.00028219,7]
[345606622,1734378665067,-500.0,0.00028219,7]
[345606623,1734378665077,-500.0,0.00028219,7]
[345606624,1734378665095,-500.0,0.00028219,7]
[345606625,1734378665105,-500.0,0.00028219,7]
[345606627,1734378665114,-500.0,0.00028219,7]
[345606629,1734378665124,-308.60991339,0.00028219,7]
[345606631,1734378665134,-500.0,0.00028219,7]
[345606633,1734378665143,-500.0,0.00028219,7]
[345606635,1734378665152,-500.0,0.00028219,7]
[345606637,1734378665162,-500.0,0.00028219,7]
[345606639,1734378665172,-500.0,0.00028219,7]
[345606641,1734378665182,-500.0,0.00028219,7]
[345606643,1734378665191,-500.0,0.00028219,7]
[345606645,1734378665202,-500.0,0.00028219,7]
[345606648,1734378665211,-500.0,0.00028219,7]
[345606650,1734378665221,-500.0,0.00028219,7]
[345606652,1734378665231,-503.89135592,0.00028219,7]
[345606654,1734378665241,-500.0,0.00028219,7]
[345606656,1734378665251,-500.0,0.00028219,7]
[345606658,1734378665261,-500.0,0.00028219,7]
[345606660,1734378665271,-500.0,0.00028219,7]
[345606662,1734378665280,-500.0,0.00028219,7]
[345606664,1734378665290,-500.0,0.00028219,7]
[345606666,1734378665299,-500.0,0.00028219,7]
[345606678,1734378665409,-500.0,0.00028219,7]
[345606680,1734378665419,-500.0,0.00028219,7]
[345606682,1734378665428,-1284.31,0.00028219,7]
[345606684,1734378665438,-500.0,0.00028219,7]
[345606686,1734378665448,-500.0,0.00028219,7]
[345606688,1734378665457,-500.0,0.00028219,7]
[345606690,1734378665467,-500.0,0.00028219,7]
[345606692,1734378665476,-500.0,0.00028219,7]
[345606694,1734378665486,-500.0,0.00028219,7]
[345606696,1734378665495,-500.0,0.00028219,7]
[345606698,1734378665505,-500.0,0.00028219,7]
[345606700,1734378665515,-500.0,0.00028219,7]
[345606702,1734378665525,-1055.83,0.00028219,7]
[345606704,1734378665535,-500.0,0.00028219,7]
[345606706,1734378665545,-500.0,0.00028219,7]
[345606708,1734378665555,-500.0,0.00028219,7]
[345606710,1734378665565,-500.0,0.00028219,7]
[345606712,1734378665575,-539.46867924,0.00028219,7]
[345606714,1734378665587,-607.21,0.00028219,7]
[345606716,1734378665597,-500.0,0.00028219,7]
[345606718,1734378665607,-500.0,0.00028219,7]
[345606720,1734378665616,-500.0,0.00028219,7]
[345606722,1734378665626,-500.0,0.00028219,7]
[345606724,1734378665636,-500.0,0.00028219,7]
[345606726,1734378665645,-500.0,0.00028219,7]
[345606728,1734378665656,-1776.96,0.00028219,7]
[345606730,1734378665665,-500.0,0.00028219,7]
[345606733,1734378665675,-500.0,0.00028219,7]
[345606735,1734378665686,-767.75,0.00028219,7]
[345606737,1734378665696,-500.0,0.00028219,7]
[345606739,1734378665706,-425.22870184,0.00028219,7]
[345606741,1734378665715,-500.0,0.00028219,7]
[345606743,1734378665726,-168.0,0.00028219,7]
[345606745,1734378665735,-500.0,0.00028219,7]
[345606747,1734378665745,-500.0,0.00028219,7]
[345606749,1734378665754,-500.0,0.00028219,7]
[345606751,1734378665765,-500.0,0.00028219,7]
[345606753,1734378665774,-500.0,0.00028219,7]
[345606755,1734378665784,-500.0,0.00028219,7]
[345606757,1734378665794,-500.0,0.00028219,7]
[345606759,1734378665804,-500.0,0.00028219,7]
[345606761,1734378665813,-500.0,0.00028219,7]
[345606763,1734378665823,-500.0,0.00028219,7]
[345606765,1734378665833,-500.0,0.00028219,7]
[345606767,1734378665842,-500.0,0.00028219,7]
[345606769,1734378665852,-500.0,0.00028219,7]
[345606771,1734378665862,-1488.28,0.00028219,7]
[345606773,1734378665872,-507.83893752,0.00028219,7]
[345606775,1734378665881,-500.0,0.00028219,7]
[345606777,1734378665891,-500.0,0.00028219,7]
[345606779,1734378665900,-500.0,0.00028219,7]
[345606781,1734378665910,-500.0,0.00028219,7]
[345606783,1734378665920,-510.64822328,0.00028219,7]
[345606785,1734378665933,-500.0,0.00028219,7]
[345606787,1734378665943,-503.76657928,0.00028219,7]
[345606789,1734378665953,-500.0,0.00028219,7]
[345606791,1734378665963,-500.0,0.00028219,7]
[345606794,1734378665974,-777.35,0.00028219,7]
[345606796,1734378665984,-500.0,0.00028219,7]
[345606798,1734378665993,-503.62042531,0.00028219,7]
[345606800,1734378666005,-2178.24,0.00028219,7]
[345606801,1734378666014,-500.0,0.00028219,7]
[345606803,1734378666023,-500.0,0.00028219,7]
[345606805,1734378666033,-1855.71,0.00028219,2]
[345606807,1734378666043,-524.55490507,0.00028219,7]
[345606810,1734378666053,-500.0,0.00028219,7]
[345606812,1734378666062,-500.0,0.00028219,7]
[345606814,1734378666071,-500.0,0.00028219,7]
[345606816,1734378666082,-500.0,0.00028219,7]
[345606818,1734378666092,-500.0,0.00028219,7]
[345606820,1734378666101,-560.05,0.00028219,7]
[345606822,1734378666111,-242.52616133,0.00028219,7]
[345606824,1734378666121,-500.0,0.00028219,7]
[345606826,1734378666131,-500.0,0.00028219,7]
[345606828,1734378666140,-500.0,0.00028219,7]
[345606830,1734378666150,-500.0,0.00028219,7]
[345606832,1734378666160,-500.0,0.00028219,7]
[345606834,1734378666169,-500.0,0.00028219,2]
[345606836,1734378666179,-500.0,0.00028219,7]
[345606838,1734378666189,-500.0,0.00028219,7]
[345606840,1734378666199,-521.45508044,0.00028219,7]
[345606842,1734378666208,-500.0,0.00028219,7]
[345606844,1734378666219,-500.0,0.00028219,7]
[345606846,1734378666229,-578.89,0.00028219,7]
[345606848,1734378666239,-507.20653829,0.00028219,7]
[345606850,1734378666249,-500.0,0.00028219,7]
[345606852,1734378666259,-500.0,0.00028219,7]
[345606854,1734378666269,-500.0,0.00028219,7]
[345606856,1734378666279,-500.0,0.00028219,7]
[345606858,1734378666289,-502.6579722,0.00028219,7]
[345606860,1734378666298,-500.0,0.00028219,7]
[345606862,1734378666308,-500.0,0.00028219,7]
[345606864,1734378666317,-570.95,0.00028219,7]
[345606866,1734378666327,-500.0,0.00028219,7]
[345606868,1734378666339,-500.0,0.00028219,7]
[345606870,1734378666348,-500.0,0.00028219,7]
[345606872,1734378666358,-1146.06,0.00028219,7]
[345606874,1734378666368,-811.7,0.00028219,7]
[345606876,1734378666377,-500.0,0.00028219,7]
[345606878,1734378666387,-500.0,0.00028219,7]
[345606880,1734378666396,-500.0,0.00028219,7]
[345606882,1734378666405,-500.0,0.00028219,7]
[345606884,1734378666415,-500.0,0.00028219,7]
[345606886,1734378666425,-500.0,0.00028219,7]
[345606888,1734378666435,-500.0,0.00028219,7]
[345606890,1734378666444,-628.99285002,0.00028219,7]
[345606891,1734378666453,-500.0,0.00028219,7]
[345606892,1734378666464,-500.0,0.00028219,7]
[345606893,1734378666473,-500.0,0.00028219,7]
[345606894,1734378666483,-500.0,0.00028219,7]
[345606895,1734378666492,-500.0,0.00028219,7]
[345606896,1734378666502,-500.0,0.00028219,7]
[345606897,1734378666512,-2592.99,0.00028219,7]
[345606898,1734378666522,-500.0,0.00028219,7]
[345606900,1734378666531,-500.0,0.00028219,7]
[345606902,1734378666541,-506.89356031,0.00028219,7]
[345606904,1734378666551,-500.0,0.00028219,7]
[345606906,1734378666561,-500.0,0.00028219,7]
[345606908,1734378666570,-500.0,0.00028219,7]
[345606910,1734378666581,-500.0,0.00028219,7]
[345606912,1734378666591,-500.0,0.00028219,7]
[345606913,1734378666600,-500.0,0.00028219,7]
[345606914,1734378666609,-500.0,0.00028219,7]
[345606915,1734378666618,-510.65709808,0.00028219,7]
[345606916,1734378666628,-500.0,0.00028219,7]
[345606917,1734378666638,-284.61036699,0.00028219,7]
[345606918,1734378666648,-500.0,0.00028219,7]
[345606919,1734378666658,-370.88176711,0.00028219,7]
[345606920,1734378666668,-500.0,0.00028219,7]
[345606921,1734378666677,-2180.29,0.00028219,7]
[345606922,1734378666686,-534.76,0.00028219,7]
[345606923,1734378666790,-295.79150136,0.00028219,7]
[345606924,1734378666800,-351.91465477,0.00028219,7]
[345606925,1734378666810,-516.79,0.00028219,7]
[345606926,1734378666821,-500.0,0.00028219,7]
[345606927,1734378666831,-1000.0,0.00028219,2]
[345606928,1734378666841,-2573.99,0.00028219,7]
[345606929,1734378666851,-500.0,0.00028219,7]
[345606930,1734378666860,-500.0,0.00028219,7]
[345606931,1734378666871,-3174.4,0.00028219,7]
[345606933,1734378666880,-505.94389329,0.00028219,7]
[345606934,1734378666890,-500.0,0.00028219,7]
[345606936,1734378666900,-453.24496953,0.00028219,7]
[345606938,1734378666910,-500.0,0.00028219,2]
[345606939,1734378666921,-503.01646252,0.00028219,7]
[345606940,1734378666934,-576.51,0.00028219,7]
[345606942,1734378666944,-2345.15,0.00028219,7]
[345606944,1734378666954,-500.0,0.00028219,7]
[345606946,1734378666964,-500.0,0.00028219,7]
[345606948,1734378666975,-578.76,0.00028219,7]
[345606950,1734378666985,-877.05,0.00028219,7]
[345606952,1734378666994,-500.0,0.00028219,7]
[345606953,1734378667004,-500.0,0.00028219,7]
[345606955,1734378667014,-500.0,0.00028219,7]
[345606957,1734378667025,-2205.48,0.00028219,7]
[345606958,1734378667035,-500.0,0.00028219,7]
[345606959,1734378667045,-500.0,0.00028219,7]
[345606960,1734378667054,-1402.79,0.00028219,7]
[345606961,1734378667064,-500.0,0.00028219,7]
[345606962,1734378667074,-1330.53,0.00028219,7]
[345606963,1734378667085,-543.93,0.00028219,7]
[345606964,1734378667094,-500.0,0.00028219,2]
[345606965,1734378667104,-500.0,0.00028219,7]
[345606966,1734378667115,-500.0,0.00028219,7]
[345606967,1734378667125,-500.0,0.00028219,7]
[345606968,1734378667135,-500.0,0.00028219,7]
[345606969,1734378667145,-500.0,0.00028219,7]
[345606970,1734378667155,-500.0,0.00028219,7]
[345606972,1734378667164,-5085.84,0.00028219,7]
[345606974,1734378667174,-500.0,0.00028219,7]
[345606975,1734378667184,-580.55,0.00028219,7]
[345606977,1734378667196,-500.0,0.00028219,7]
[345606979,1734378667207,-500.0,0.00028219,7]
[345606982,1734378667217,-500.0,0.00028219,7]
[345606984,1734378667227,-777.74,0.00028219,7]
[345606985,1734378667238,-500.0,0.00028219,7]
[345606986,1734378667248,-773.31,0.00028219,7]
[345606988,1734378667258,-500.0,0.00028219,7]
[345606990,1734378667268,-500.0,0.00028219,7]
[345606992,1734378667278,-500.0,0.00028219,7]
[345606994,1734378667287,-500.0,0.00028219,7]
[345606996,1734378667297,-500.0,0.00028219,7]
[345606998,1734378667307,-9195.94,0.00028219,7]
[345607000,1734378667317,-500.0,0.00028219,7]
[345607001,1734378667327,-500.0,0.00028219,7]
[345607002,1734378667338,-500.0,0.00028219,7]
[345607003,1734378667348,-500.0,0.00028219,7]
[345607004,1734378667358,-500.0,0.00028219,7]
[345607005,1734378667367,-500.0,0.00028219,7]
[345607006,1734378667377,-500.0,0.00028219,7]
[345607007,1734378667387,-500.0,0.00028219,7]
[345607008,1734378667397,-500.0,0.00028219,7]
[345607009,1734378667406,-500.0,0.00028219,7]
[345607010,1734378667417,-500.0,0.00028219,7]
[345607011,1734378667427,-500.0,0.00028219,7]
[345607012,1734378667437,-500.0,0.00028219,7]
[345607013,1734378667447,-500.0,0.00028219,7]
[345607014,1734378667456,-503.98013853,0.00028219,7]
[345607015,1734378667466,-500.0,0.00028219,7]
[345607016,1734378667476,-500.0,0.00028219,7]
[345607017,1734378667485,-500.0,0.00028219,7]
[345607018,1734378667495,-171.37561465,0.00028219,7]
[345607019,1734378667504,-7158.8,0.00028219,7]
[345607020,1734378667514,-500.0,0.00028219,7]
[345607021,1734378667524,-500.0,0.00028219,7]
[345607022,1734378667534,-500.0,0.00028219,7]
[345607023,1734378667544,-500.0,0.00028219,7]
[345607025,1734378667554,-500.0,0.00028219,7]
[345607028,1734378667564,-500.0,0.00028219,7]
[345607030,1734378667574,-500.0,0.00028219,7]
[345607032,1734378667586,-500.0,0.00028219,7]
[345607033,1734378667596,-500.0,0.00028219,7]
[345607035,1734378667605,-500.0,0.00028219,7]
[345607037,1734378667615,-500.0,0.00028219,7]
[345607038,1734378667624,-500.0,0.00028219,7]
[345607040,1734378667634,-200.0,0.00028219,7]
[345607041,1734378667644,-500.0,0.00028219,7]
[345607042,1734378667653,-500.0,0.00028219,7]
[345607043,1734378667663,-1793.9,0.00028219,7]
[345607044,1734378667673,-500.0,0.00028219,7]
[345607045,1734378667682,-500.0,0.00028219,7]
[345607046,1734378667691,-500.0,0.00028219,7]
[345607047,1734378667701,-500.0,0.00028219,7]
[345607048,1734378667710,-500.0,0.00028219,7]
[345607049,1734378667719,-616.92,0.00028219,7]
[345607050,1734378667729,-505.93608036,0.00028219,7]
[345607051,1734378667739,-802.84,0.00028219,7]
[345607052,1734378667748,-500.0,0.00028219,7]
[345607053,1734378667758,-645.1137183,0.00028219,7]
[345607054,1734378667767,-1507.94,0.00028219,7]
[345607055,1734378667777,-500.0,0.00028219,7]
[345607056,1734378667787,-450.30589015,0.00028219,7]
[345607057,1734378667797,-1682.8,0.00028219,7]
[345607058,1734378667807,-500.0,0.00028219,7]
[345607059,1734378667817,-500.0,0.00028219,7]
[345607060,1734378667827,-500.0,0.00028219,7]
[345607061,1734378667841,-503.98414183,0.00028219,7]
[345607062,1734378667850,-9729.37,0.00028219,7]
[345607063,1734378667860,-1060.98,0.00028219,7]
[345607064,1734378667869,-500.0,0.00028219,7]
[345607065,1734378667880,-500.0,0.00028219,7]
[345607066,1734378667890,-14925.36,0.00028219,7]
[345607067,1734378667900,-500.0,0.00028219,7]
[345607068,1734378667910,-500.0,0.00028219,7]
[345607069,1734378667920,-500.0,0.00028219,7]
[345607070,1734378667933,-500.0,0.00028219,7]
[345607071,1734378667943,-500.0,0.00028219,7]
[345607072,1734378667952,-500.0,0.00028219,7]
[345607073,1734378667962,-500.0,0.00028219,7]
[345607074,1734378667973,-500.0,0.00028219,7]
[345607075,1734378667983,-500.0,0.00028219,7]
[345607076,1734378667994,-500.0,0.00028219,7]
[345607077,1734378668096,-500.0,0.00028219,7]
[345607078,1734378668107,-2344.08,0.00028219,7]
[345607079,1734378668117,-500.0,0.00028219,7]
[345607080,1734378668127,-500.0,0.00028219,7]
[345607081,1734378668136,-1661.08,0.00028219,7]
[345607082,1734378668146,-286.13051889,0.00028219,7]
[345607083,1734378668156,-500.0,0.00028219,7]
[345607084,1734378668166,-500.0,0.00028219,7]
[345607085,1734378668176,-500.0,0.00028219,7]
[345607086,1734378668186,-595.17,0.00028219,7]
[345607087,1734378668196,-500.0,0.00028219,7]
[345607088,1734378668206,-500.0,0.00028219,7]
[345607089,1734378668216,-3399.59,0.00028219,5]
[345607090,1734378668227,-527.23,0.00028219,7]
[345607091,1734378668236,-500.0,0.00028219,7]
[345607092,1734378668246,-566.2,0.00028219,7]
[345607093,1734378668256,-500.0,0.00028219,7]
[345607094,1734378668266,-4636.3,0.00028219,7]
[345607095,1734378668275,-500.0,0.00028219,7]
[345607096,1734378668285,-500.0,0.00028219,7]
[345607097,1734378668295,-45939.37,0.00028219,7]
[345607098,1734378668304,-500.0,0.00028219,7]
[345607099,1734378668314,-500.0,0.00028219,7]
[345607100,1734378668324,-500.0,0.00028219,7]
[345607101,1734378668340,-2498.22,0.00028219,7]
[345607102,1734378668350,-500.0,0.00028219,7]
[345607103,1734378668362,-745.37,0.00028219,7]
[345607104,1734378668372,-500.0,0.00028219,7]
[345607105,1734378668383,-500.0,0.00028219,2]
[345607106,1734378668393,-540.92638163,0.00028221,5]
[345607107,1734378668402,-882.24887576,0.00028246,2]
[345607108,1734378668411,-561.978,0.0002827,2]
[345607109,1734378668421,-10445.75867062,0.00028294,2]
[345607110,1734378668431,-212.32053271,0.00028301,2]
[345607111,1734378668440,-151.0,0.00028357,7]
[345607112,1734378668450,-563.68,0.000284,31]
[345607113,1734378668459,-563.68,0.000284,31]
[345607114,1734378668469,-563.68,0.000284,31]
[345607115,1734378668479,-563.68,0.000284,31]
[345607116,1734378668488,-563.68,0.000284,31]
[345607117,1734378668498,-563.68,0.000284,31]
[345607118,1734378668508,-563.68,0.000284,31]
[345607119,1734378668518,-563.68,0.000284,31]
[345607120,1734378668528,-563.68,0.000284,31]
[345607121,1734378668538,-563.68,0.000284,31]
[345607122,1734378668548,-563.68,0.000284,31]
[345607123,1734378668558,-563.68,0.000284,31]
[345607124,1734378668567,-212.32053271,0.00028438,2]
[345607125,1734378668577,-152.192176,0.00028493,7]
[345607126,1734378668593,-500.0,0.00028493,7]
[345607127,1734378668603,-500.0,0.00028493,7]
[345607128,1734378668612,-500.0,0.00028493,7]
[345607129,1734378668622,-500.0,0.00028493,7]
[345607130,1734378668632,-605.19,0.00028493,7]
[345607131,1734378668641,-500.0,0.00028493,7]
[345607132,1734378668660,-500.0,0.00028493,7]
[345607133,1734378668678,-500.0,0.00028493,7]
[345607134,1734378668698,-500.0,0.00028493,7]
[345607135,1734378668718,-500.0,0.00028493,7]
[345607136,1734378668739,-500.0,0.00028493,7]
[345607137,1734378668758,-500.0,0.00028493,7]
[345607138,1734378668779,-500.0,0.00028493,7]
[345607139,1734378668794,-500.0,0.00028493,7]
[345607140,1734378668815,-500.0,0.00028493,2]
[345607141,1734378668836,-500.0,0.00028493,7]
[345607142,1734378668856,-500.0,0.00028493,7]
[345607143,1734378668870,-500.0,0.00028493,7]
[345607144,1734378668892,-202.7108965,0.00028493,7]
[345607145,1734378668907,-202.57878873,0.00028493,7]
[345607146,1734378668926,-500.0,0.00028493,7]
[345607147,1734378668942,-500.0,0.00028493,7]
[345607148,1734378668959,-500.0,0.00028493,7]
[345607149,1734378668976,-424.86035152,0.00028493,7]
[345607150,1734378668992,-506.61911136,0.00028493,7]
[345607151,1734378669009,-500.0,0.00028493,7]
[345607152,1734378669025,-500.0,0.00028493,7]
[345607153,1734378669042,-500.0,0.00028493,7]
[345607154,1734378669058,-500.0,0.00028493,7]
[345607155,1734378669075,-500.0,0.00028493,7]
[345607156,1734378669096,-230.18361148,0.00028493,7]
[345607157,1734378669113,-696.51,0.00028493,7]
[345607158,1734378669130,-509.74187069,0.00028493,7]
[345607159,1734378669148,-500.0,0.00028493,7]
[345607160,1734378669164,-500.0,0.00028493,7]
[345607161,1734378669182,-504.7159423,0.00028493,7]
[345607162,1734378669199,-503.3912217,0.00028493,7]
[345607163,1734378669216,-500.0,0.00028493,7]
[345607164,1734378669233,-502.38289523,0.00028493,7]
[345607165,1734378669250,-500.0,0.00028493,7]
[345607166,1734378669267,-500.0,0.00028493,7]
[345607167,1734378669283,-500.0,0.00028493,7]
[345607168,1734378669300,-920.62,0.00028493,7]
[345607169,1734378669316,-506.55125742,0.00028493,7]
[345607170,1734378669334,-500.0,0.00028493,7]
[345607171,1734378669351,-506.30968308,0.00028493,7]
[345607172,1734378669368,-500.0,0.00028493,7]
[345607173,1734378669387,-505.17927389,0.00028493,7]
[345607174,1734378669404,-481.05044019,0.00028493,7]
[345607175,1734378669420,-500.0,0.00028493,7]
[345607176,1734378669437,-505.38685492,0.00028493,7]
[345607177,1734378669454,-500.0,0.00028493,7]
[345607178,1734378669471,-500.0,0.00028493,7]
[345607179,1734378669488,-500.0,0.00028493,7]
[345607180,1734378669505,-2138.97,0.00028493,7]
[345607181,1734378669521,-500.0,0.00028493,7]
[345607182,1734378669539,-500.0,0.00028493,7]
[345607183,1734378669555,-197.64,0.00028493,7]
[345607184,1734378669573,-691.22,0.00028493,7]
[345607185,1734378669591,-219.14568439,0.00028493,7]
[345607186,1734378669608,-500.0,0.00028493,7]
[345607187,1734378669625,-642.02,0.00028493,7]
[345607188,1734378669769,-500.0,0.00028493,7]
[345607189,1734378669780,-500.0,0.00028493,7]
[345607190,1734378669789,-500.0,0.00028493,7]
[345607191,1734378669799,-500.0,0.00028493,7]
[345607192,1734378669808,-502.75136873,0.00028493,7]
[345607193,1734378669819,-500.0,0.00028493,7]
[345607194,1734378669829,-503.79040515,0.00028493,7]
[345607195,1734378669840,-500.0,0.00028493,7]
[345607196,1734378669850,-500.0,0.00028493,7]
[345607197,1734378669861,-500.0,0.00028493,7]
[345607198,1734378669871,-500.0,0.00028493,7]
[345607199,1734378669880,-190.24099304,0.00028493,7]
[345607200,1734378669890,-500.0,0.00028493,7]
[345607201,1734378669899,-500.0,0.00028493,7]
[345607202,1734378669910,-500.0,0.00028493,7]
[345607203,1734378669920,-500.0,0.00028493,7]
[345607204,1734378669934,-500.0,0.00028493,7]
[345607205,1734378669943,-500.0,0.00028493,7]
[345607206,1734378669953,-500.0,0.00028493,7]
[345607207,1734378669963,-500.0,0.00028493,7]
[345607208,1734378669973,-500.0,0.00028493,7]
[345607209,1734378669982,-500.0,0.00028493,7]
[345607210,1734378669992,-500.0,0.00028493,7]
[345607211,1734378670001,-500.0,0.00028493,7]
[345607212,1734378670013,-500.0,0.00028493,7]
[345607213,1734378670023,-500.0,0.00028493,7]
[345607214,1734378670032,-500.0,0.00028493,7]
[345607215,1734378670042,-1284.31,0.00028493,7]
[345607216,1734378670051,-500.0,0.00028493,7]
[345607217,1734378670061,-500.0,0.00028493,7]
[345607218,1734378670071,-500.0,0.00028493,7]
[345607219,1734378670080,-504.10490195,0.00028493,7]
[345607220,1734378670091,-328.64434003,0.00028493,7]
[345607221,1734378670101,-561.63034958,0.00028493,7]
[345607222,1734378670111,-500.0,0.00028493,7]
[345607223,1734378670121,-500.0,0.00028493,7]
[345607224,1734378670131,-500.0,0.00028493,7]
[345607225,1734378670141,-1055.83,0.00028493,7]
[345607226,1734378670150,-500.0,0.00028493,7]
[345607227,1734378670160,-500.0,0.00028493,7]
[345607228,1734378670170,-500.0,0.00028493,7]
[345607229,1734378670179,-607.21,0.00028493,7]
[345607230,1734378670189,-500.0,0.00028493,7]
[345607231,1734378670199,-500.0,0.00028493,7]
[345607232,1734378670209,-580.28902582,0.00028493,7]
[345607233,1734378670218,-500.0,0.00028493,7]
[345607234,1734378670228,-500.0,0.00028493,7]
[345607235,1734378670238,-1776.96,0.00028493,7]
[345607236,1734378670247,-386.10589763,0.00028493,7]
[345607237,1734378670257,-500.0,0.00028493,7]
[345607238,1734378670267,-767.75,0.00028493,7]
[345607239,1734378670277,-603.55873705,0.00028493,7]
[345607240,1734378670287,-500.0,0.00028493,7]
[345607241,1734378670296,-502.7848892,0.00028493,7]
[345607242,1734378670306,-168.0,0.00028493,7]
[345607243,1734378670315,-500.0,0.00028493,7]
[345607244,1734378670325,-506.2770971,0.00028493,7]
[345607245,1734378670336,-500.0,0.00028493,7]
[345607246,1734378670345,-500.0,0.00028493,7]
[345607247,1734378670355,-535.40842529,0.00028493,7]
[345607248,1734378670364,-376.42396413,0.00028493,7]
[345607249,1734378670374,-500.0,0.00028493,7]
[345607250,1734378670384,-467.58022525,0.00028493,7]
[345607251,1734378670394,-500.0,0.00028493,7]
[345607252,1734378670404,-502.8101452,0.00028493,7]
[345607253,1734378670413,-1488.28,0.00028493,7]
[345607254,1734378670423,-505.16466429,0.00028493,7]
[345607255,1734378670433,-503.98940354,0.00028493,7]
[345607256,1734378670443,-509.93032164,0.00028493,7]
[345607257,1734378670453,-500.0,0.00028493,7]
[345607258,1734378670464,-500.0,0.00028493,7]
[345607259,1734378670476,-500.0,0.00028493,7]
[345607260,1734378670486,-500.0,0.00028493,7]
[345607261,1734378670496,-777.35,0.00028493,7]
[345607262,1734378670505,-500.0,0.00028493,7]
[345607263,1734378670515,-2178.24,0.00028493,7]
[345607264,1734378670525,-500.0,0.00028493,7]
[345607265,1734378670534,-1855.71,0.00028493,2]
[345607266,1734378670545,-502.37854492,0.00028493,7]
[345607267,1734378670554,-500.0,0.00028493,7]
[345607268,1734378670564,-500.0,0.00028493,7]
[345607269,1734378670575,-500.0,0.00028493,7]
[345607270,1734378670587,-500.0,0.00028493,7]
[345607271,1734378670596,-560.05,0.00028493,7]
[345607272,1734378670606,-500.99448498,0.00028493,7]
[345607273,1734378670616,-512.24222871,0.00028493,7]
[345607274,1734378670626,-509.15949966,0.00028493,7]
[345607275,1734378670636,-452.90901779,0.00028493,7]
[345607276,1734378670646,-500.0,0.00028493,7]
[345607277,1734378670655,-500.0,0.00028493,2]
[345607278,1734378670665,-500.0,0.00028493,7]
[345607279,1734378670675,-519.37895914,0.00028493,7]
[345607280,1734378670685,-500.0,0.00028493,7]
[345607281,1734378670695,-578.89,0.00028493,7]
[345607282,1734378670705,-196.20937865,0.00028493,7]
[345607283,1734378670715,-500.0,0.00028493,7]
[345607284,1734378670724,-500.0,0.00028493,7]
[345607285,1734378670734,-500.0,0.00028493,7]
[345607286,1734378670743,-500.0,0.00028493,7]
[345607287,1734378670753,-570.95,0.00028493,7]
[345607288,1734378670763,-500.0,0.00028493,7]
[345607289,1734378670773,-500.0,0.00028493,7]
[345607290,1734378670783,-500.0,0.00028493,7]
[345607291,1734378670793,-1146.06,0.00028493,7]
[345607292,1734378670808,-811.7,0.00028493,7]
[345607293,1734378670834,-500.0,0.00028493,7]
[345607294,1734378670845,-507.5613979,0.00028493,7]
[345607295,1734378670854,-500.0,0.00028493,7]
[345607296,1734378670864,-500.0,0.00028493,7]
[345607297,1734378670874,-503.28827737,0.00028493,7]
[345607298,1734378670884,-500.0,0.00028493,7]